fUST/lending_fUST_20240903
["ID","MTS","AMOUNT","RATE_DAILY","PERIOD"]
[336998013,1725299467962,-500.0,0.00044931,120]
[336998014,1725299467972,-500.0,0.00044931,120]
[336998015,1725299467981,-619.14,0.00044931,120]
[336998016,1725299467992,-500.0,0.00044931,120]
[336998017,1725299468002,-500.0,0.00044931,120]
[336998018,1725299468011,-500.0,0.00044931,120]
[336998019,1725299468021,-500.0,0.00044931,120]
[336998020,1725299468030,-500.0,0.00044931,120]
[336998021,1725299468039,-1248.91,0.00044931,120]
[336998022,1725299468049,-500.0,0.00044931,120]
[336998023,1725299468059,-500.0,0.00044931,120]
[336998024,1725299468070,-500.0,0.00044931,120]
[336998025,1725299468080,-500.0,0.00044931,120]
[336998026,1725299468090,-500.0,0.00044931,120]
[336998027,1725299468100,-500.0,0.00044931,120]
[336998028,1725299468110,-500.0,0.00044931,120]
[336998029,1725299468120,-762.67,0.00044931,120]
[336998030,1725299468130,-500.0,0.00044931,120]
[336998031,1725299468139,-500.0,0.00044931,120]
[336998032,1725299468150,-251.9642432,0.00044931,120]
[336998033,1725299468159,-500.0,0.00044931,120]
[336998034,1725299468169,-500.0,0.00044931,120]
[336998035,1725299468179,-515.27692663,0.00044931,120]
[336998036,1725299468188,-500.0,0.00044931,120]
[336998037,1725299468198,-500.0,0.00044931,120]
[336998038,1725299468208,-500.0,0.00044931,120]
[336998039,1725299468218,-500.0,0.00044931,120]
[336998040,1725299468228,-605.29835845,0.00044931,120]
[336998041,1725299468238,-500.0,0.00044931,120]
[336998042,1725299468248,-505.46,0.00044931,120]
[336998043,1725299468328,-500.0,0.00044931,120]
[336998044,1725299468339,-500.0,0.00044931,120]
[336998045,1725299468349,-500.0,0.00044931,120]
[336998046,1725299468361,-500.0,0.00044931,120]
[336998047,1725299468372,-503.8545373,0.00044931,120]
[336998048,1725299468384,-729.65,0.00044931,120]
[336998049,1725299468395,-505.7113583,0.00044931,120]
[336998050,1725299468405,-500.0,0.00044931,120]
[336998051,1725299468414,-500.0,0.00044931,120]
[336998052,1725299468423,-500.0,0.00044931,120]
[336998053,1725299468432,-329.79021194,0.00044931,120]
[336998054,1725299468442,-500.0,0.00044931,120]
[336998055,1725299468452,-500.0,0.00044931,120]
[336998056,1725299468462,-500.0,0.00044931,120]
[336998057,1725299468472,-571.48,0.00044931,120]
[336998058,1725299468483,-500.0,0.00044931,120]
[336998059,1725299468493,-500.0,0.00044931,120]
[336998060,1725299468502,-502.94461312,0.00044931,120]
[336998061,1725299468512,-835.83,0.00044931,120]
[336998062,1725299468521,-500.0,0.00044931,120]
[336998063,1725299468531,-500.0,0.00044931,120]
[336998064,1725299468541,-499.62630377,0.00044931,120]
[336998065,1725299468551,-500.0,0.00044931,120]
[336998066,1725299468561,-503.9278936,0.00044931,120]
[336998067,1725299468571,-500.0,0.00044931,120]
[336998068,1725299468581,-500.0,0.00044931,120]
[336998069,1725299468591,-500.0,0.00044931,120]
[336998070,1725299468600,-500.0,0.00044931,120]
[336998071,1725299468610,-500.0,0.00044931,120]
[336998072,1725299468619,-500.0,0.00044931,120]
[336998073,1725299468629,-500.0,0.00044931,120]
[336998074,1725299468639,-500.0,0.00044931,120]
[336998075,1725299468649,-500.0,0.00044931,7]
[336998076,1725299468658,-500.0,0.00044931,120]
[336998077,1725299468668,-500.0,0.00044931,120]
[336998078,1725299468677,-500.0,0.00044931,120]
[336998079,1725299468688,-500.0,0.00044931,120]
[336998080,1725299468702,-587.13,0.00044931,30]
[336998081,1725299468712,-506.35198726,0.00044931,120]
[336998082,1725299468722,-500.0,0.00044931,120]
[336998083,1725299468732,-500.0,0.00044931,120]
[336998084,1725299468742,-500.0,0.00044931,120]
[336998085,1725299468752,-500.0,0.00044931,120]
[336998086,1725299468762,-500.0,0.00044931,120]
[336998087,1725299468772,-500.0,0.00044931,120]
[336998088,1725299468782,-500.0,0.00044931,120]
[336998089,1725299468792,-500.0,0.00044931,120]
[336998090,1725299468802,-500.0,0.00044931,120]
[336998091,1725299468811,-524.58894316,0.00044931,120]
[336998092,1725299468822,-500.0,0.00044931,120]
[336998093,1725299468832,-500.0,0.00044931,120]
[336998094,1725299468843,-779.61,0.00044931,120]
[336998095,1725299468853,-500.0,0.00044931,120]
[336998096,1725299468864,-500.0,0.00044931,120]
[336998097,1725299468874,-1042.33,0.00044931,120]
[336998098,1725299468884,-500.0,0.00044931,120]
[336998099,1725299468894,-500.0,0.00044931,120]
[336998100,1725299468904,-500.0,0.00044931,120]
[336998101,1725299468915,-500.0,0.00044931,120]
[336998102,1725299468924,-500.0,0.00044931,120]
[336998103,1725299468934,-500.0,0.00044931,120]
[336998104,1725299468944,-500.0,0.00044931,120]
[336998105,1725299468954,-500.0,0.00044931,120]
[336998106,1725299468964,-500.0,0.00044931,120]
[336998107,1725299468974,-504.06042606,0.00044931,120]
[336998108,1725299468984,-500.0,0.00044931,120]
[336998109,1725299468993,-500.0,0.00044931,120]
[336998110,1725299469003,-562.87,0.00044931,120]
[336998111,1725299469014,-500.0,0.00044931,120]
[336998112,1725299469024,-500.0,0.00044931,120]
[336998113,1725299469034,-507.05520552,0.00044931,120]
[336998114,1725299469044,-500.0,0.00044931,120]
[336998115,1725299469053,-500.0,0.00044931,120]
[336998116,1725299469064,-620.6,0.00044931,120]
[336998117,1725299469074,-500.0,0.00044931,120]
[336998118,1725299469084,-500.0,0.00044931,120]
[336998119,1725299469094,-500.0,0.00044931,120]
[336998120,1725299469104,-500.0,0.00044931,120]
[336998121,1725299469114,-500.0,0.00044931,120]
[336998122,1725299469123,-500.0,0.00044931,120]
[336998123,1725299469134,-1378.84,0.00044931,120]
[336998124,1725299469145,-500.0,0.00044931,120]
[336998125,1725299469154,-500.0,0.00044931,120]
[336998126,1725299469165,-500.0,0.00044931,120]
[336998127,1725299469175,-1685.12,0.00044931,120]
[336998128,1725299469185,-502.9666215,0.00044931,120]
[336998129,1725299469194,-500.0,0.00044931,120]
[336998130,1725299469204,-500.0,0.00044931,120]
[336998131,1725299469214,-500.0,0.00044931,120]
[336998132,1725299469224,-500.0,0.00044931,120]
[336998133,1725299469234,-500.0,0.00044931,120]
[336998134,1725299469244,-500.0,0.00044931,120]
[336998135,1725299469253,-500.0,0.00044931,120]
[336998136,1725299469263,-807.99,0.00044931,120]
[336998137,1725299469273,-2400.57,0.00044931,120]
[336998138,1725299469282,-500.0,0.00044931,120]
[336998139,1725299469291,-500.0,0.00044931,120]
[336998140,1725299469301,-500.0,0.00044931,120]
[336998141,1725299469310,-500.0,0.00044931,120]
[336998142,1725299469319,-500.0,0.00044931,120]
[336998143,1725299469329,-316.92092535,0.00044931,120]
[336998144,1725299469338,-500.0,0.00044931,120]
[336998145,1725299469348,-500.0,0.00044931,120]
[336998146,1725299469358,-500.0,0.00044931,120]
[336998147,1725299469368,-500.0,0.00044931,120]
[336998148,1725299469377,-500.0,0.00044931,120]
[336998149,1725299469387,-504.62561545,0.00044931,120]
[336998150,1725299469397,-500.0,0.00044931,120]
[336998151,1725299469406,-334.16688174,0.00044931,120]
[336998152,1725299469415,-500.0,0.00044931,120]
[336998153,1725299469425,-500.0,0.00044931,120]
[336998154,1725299469434,-500.0,0.00044931,120]
[336998155,1725299469443,-2683.59,0.00044931,120]
[336998156,1725299469452,-9812.96,0.00044931,120]
[336998157,1725299469462,-500.0,0.00044931,120]
[336998158,1725299469473,-417.11389122,0.00044931,120]
[336998159,1725299469482,-500.0,0.00044931,120]
[336998160,1725299469492,-500.0,0.00044931,120]
[336998161,1725299469502,-500.0,0.00044931,120]
[336998162,1725299469512,-500.0,0.00044931,120]
[336998163,1725299469521,-500.0,0.00044931,120]
[336998164,1725299469531,-559.89,0.00044931,21]
[336998165,1725299469540,-1849.02,0.00044931,2]
[336998166,1725299469550,-500.0,0.00044931,120]
[336998167,1725299469560,-500.0,0.00044931,120]
[336998168,1725299469569,-500.0,0.00044931,120]
[336998169,1725299469580,-500.0,0.00044931,120]
[336998170,1725299469590,-500.0,0.00044931,120]
[336998171,1725299469599,-500.0,0.00044931,120]
[336998172,1725299469609,-1032.68,0.00044931,120]
[336998173,1725299469618,-1101.48,0.00044931,120]
[336998174,1725299469628,-500.0,0.00044931,120]
[336998175,1725299469638,-500.0,0.00044931,120]
[336998176,1725299469647,-500.0,0.00044931,120]
[336998177,1725299469656,-500.0,0.00044931,120]
[336998178,1725299469666,-500.0,0.00044931,120]
[336998179,1725299469675,-500.0,0.00044931,120]
[336998180,1725299469684,-460.93655901,0.00044931,120]
[336998181,1725299469694,-500.0,0.00044931,14]
[336998182,1725299469708,-500.0,0.00044931,120]
[336998183,1725299469717,-500.0,0.00044931,120]
[336998184,1725299469726,-503.53858739,0.00044931,120]
[336998185,1725299469736,-200.0,0.00044931,7]
[336998186,1725299469746,-581.24,0.00044931,120]
[336998187,1725299469755,-500.0,0.00044931,120]
[336998188,1725299469764,-500.0,0.00044931,120]
[336998189,1725299469773,-641.32922599,0.00044931,120]
[336998190,1725299469784,-500.0,0.00044931,120]
[336998191,1725299469793,-500.0,0.00044931,120]
[336998192,1725299469803,-500.0,0.00044931,120]
[336998193,1725299469812,-500.0,0.00044931,120]
[336998194,1725299469821,-500.0,0.00044931,120]
[336998195,1725299469833,-500.0,0.00044931,120]
[336998196,1725299469843,-564.09,0.00044931,120]
[336998197,1725299469855,-500.0,0.00044931,120]
[336998198,1725299469865,-1006.75,0.00044931,120]
[336998199,1725299469875,-503.40672282,0.00044931,120]
[336998200,1725299469884,-523.26738341,0.00044931,120]
[336998201,1725299469895,-592.45,0.00044931,120]
[336998202,1725299469904,-824.68,0.00044931,120]
[336998203,1725299469916,-2165.33,0.00044931,120]
[336998204,1725299469927,-502.36567625,0.00044931,120]
[336998205,1725299469937,-159.62148588,0.00044931,120]
[336998206,1725299469947,-500.0,0.00044931,120]
[336998207,1725299469957,-500.0,0.00044931,120]
[336998208,1725299469967,-500.0,0.00044931,7]
[336998209,1725299469976,-500.0,0.00044931,120]
[336998210,1725299469986,-502.15777729,0.00044931,120]
[336998211,1725299469996,-501.90515221,0.00044931,120]
[336998212,1725299470005,-801.11,0.00044931,120]
[336998213,1725299470014,-500.0,0.00044931,120]
[336998214,1725299470023,-500.0,0.00044931,120]
[336998215,1725299470034,-6010.24,0.00044931,120]
[336998216,1725299470043,-529.01758195,0.00044931,120]
[336998217,1725299470053,-2597.09,0.00044931,120]
[336998218,1725299470062,-500.0,0.00044931,60]
[336998219,1725299470072,-502.82015077,0.00044931,120]
[336998220,1725299470082,-500.0,0.00044931,120]
[336998221,1725299470093,-500.0,0.00044931,120]
[336998222,1725299470102,-500.0,0.00044931,120]
[336998223,1725299470113,-1197.24,0.00044931,120]
[336998224,1725299470126,-573.45630201,0.00044931,120]
[336998225,1725299470137,-500.0,0.00044931,120]
[336998226,1725299470147,-500.0,0.00044931,120]
[336998227,1725299470157,-500.0,0.00044931,120]
[336998228,1725299470167,-500.0,0.00044931,120]
[336998229,1725299470176,-500.0,0.00044931,120]
[336998230,1725299470185,-500.0,0.00044931,120]
[336998231,1725299470195,-500.0,0.00044931,120]
[336998232,1725299470204,-500.0,0.00044931,120]
[336998233,1725299470213,-500.0,0.00044931,120]
[336998234,1725299470223,-725.84,0.00044931,120]
[336998235,1725299470233,-509.19,0.00044931,120]
[336998236,1725299470243,-768.36,0.00044931,120]
[336998237,1725299470252,-500.0,0.00044931,120]
[336998238,1725299470262,-500.0,0.00044931,120]
[336998239,1725299470272,-500.0,0.00044931,120]
[336998240,1725299470282,-500.0,0.00044931,120]
[336998241,1725299470292,-500.0,0.00044931,120]
[336998242,1725299470302,-500.0,0.00044931,120]
[336998243,1725299470311,-500.0,0.00044931,120]
[336998244,1725299470321,-500.0,0.00044931,120]
[336998245,1725299470332,-1224.14,0.00044931,120]
[336998246,1725299470342,-503.33503037,0.00044931,120]
[336998247,1725299470353,-500.0,0.00044931,120]
[336998248,1725299470363,-502.49457193,0.00044931,120]
[336998249,1725299470373,-500.0,0.00044931,120]
[336998250,1725299470383,-601.31,0.00044931,120]
[336998251,1725299470393,-500.0,0.00044931,120]
[336998252,1725299470402,-500.0,0.00044931,120]
[336998253,1725299470411,-500.0,0.00044931,120]
[336998254,1725299470422,-555.15,0.00044931,120]
[336998255,1725299470431,-500.0,0.00044931,120]
[336998256,1725299470441,-500.0,0.00044931,120]
[336998257,1725299470451,-500.0,0.00044931,120]
[336998258,1725299470462,-500.0,0.00044931,120]
[336998259,1725299470474,-500.0,0.00044931,120]
[336998260,1725299470483,-500.0,0.00044931,30]
[336998261,1725299470492,-191.79475812,0.00044931,120]
[336998262,1725299470502,-541.45,0.00044931,120]
[336998263,1725299470511,-500.0,0.00044931,120]
[336998264,1725299470521,-500.0,0.00044931,20]
[336998265,1725299470530,-823.62,0.00044931,120]
[336998266,1725299470541,-500.0,0.00044931,120]
[336998267,1725299470551,-500.0,0.00044931,2]
[336998268,1725299470563,-500.0,0.00044931,120]
[336998269,1725299470572,-500.0,0.00044931,120]
[336998270,1725299470583,-500.0,0.00044931,120]
[336998271,1725299470592,-500.0,0.00044931,120]
[336998272,1725299470604,-417.39110842,0.00044931,120]
[336998273,1725299470615,-500.0,0.00044931,120]
[336998274,1725299470625,-500.0,0.00044931,120]
[336998275,1725299470636,-4513.12,0.00044931,120]
[336998276,1725299470647,-500.0,0.00044931,2]
[336998277,1725299470657,-500.0,0.00044931,120]
[336998278,1725299470668,-500.0,0.00044931,120]
[336998279,1725299470678,-824.48,0.00044931,120]
[336998280,1725299470688,-500.0,0.00044931,120]
[336998281,1725299470700,-500.0,0.00044931,120]
[336998282,1725299470710,-500.0,0.00044931,120]
[336998283,1725299470720,-500.0,0.00044931,120]
[336998284,1725299470730,-500.0,0.00044931,120]
[336998285,1725299470741,-500.0,0.00044931,120]
[336998286,1725299470750,-500.0,0.00044931,120]
[336998287,1725299470760,-500.0,0.00044931,120]
[336998288,1725299470769,-513.66,0.00044931,120]
[336998289,1725299470781,-500.0,0.00044931,120]
[336998290,1725299470894,-634.52,0.00044931,120]
[336998291,1725299470903,-500.0,0.00044931,120]
[336998292,1725299470913,-500.0,0.00044931,120]
[336998293,1725299470922,-500.0,0.00044931,120]
[336998294,1725299470932,-500.0,0.00044931,120]
[336998295,1725299470941,-500.0,0.00044931,120]
[336998296,1725299470951,-500.0,0.00044931,120]
[336998297,1725299470960,-500.01522706,0.00044931,2]
[336998298,1725299470969,-500.0,0.00044931,120]
[336998299,1725299470978,-2265.21,0.00044931,120]
[336998300,1725299470988,-500.0,0.00044931,120]
[336998301,1725299470998,-500.0,0.00044931,120]
[336998302,1725299471007,-500.0,0.00044931,120]
[336998303,1725299471016,-611.87,0.00044931,120]
[336998304,1725299471026,-500.0,0.00044931,120]
[336998305,1725299471035,-500.0,0.00044931,120]
[336998306,1725299471044,-500.0,0.00044931,120]
[336998307,1725299471054,-500.0,0.00044931,120]
[336998308,1725299471063,-500.0,0.00044931,120]
[336998309,1725299471073,-500.0,0.00044931,120]
[336998310,1725299471084,-725.61,0.00044931,120]
[336998311,1725299471094,-500.0,0.00044931,120]
[336998312,1725299471103,-500.0,0.00044931,120]
[336998313,1725299471113,-500.0,0.00044931,60]
[336998314,1725299471123,-500.68,0.00044931,120]
[336998315,1725299471132,-501.4725665,0.00044931,120]
[336998316,1725299471142,-500.0,0.00044931,120]
[336998317,1725299471151,-500.0,0.00044931,120]
[336998318,1725299471160,-1603.88,0.00044931,120]
[336998319,1725299471169,-500.0,0.00044931,120]
[336998320,1725299471179,-500.0,0.00044931,120]
[336998321,1725299471188,-500.0,0.00044931,120]
[336998322,1725299471197,-500.0,0.00044931,120]
[336998323,1725299471207,-500.0,0.00044931,120]
[336998324,1725299471217,-500.0,0.00044931,120]
[336998325,1725299471226,-2208.45,0.00044931,120]
[336998326,1725299471235,-471.89571295,0.00044931,120]
[336998327,1725299471245,-505.1008714,0.00044931,120]
[336998328,1725299471254,-500.0,0.00044931,120]
[336998329,1725299471264,-500.0,0.00044931,120]
[336998330,1725299471274,-500.0,0.00044931,120]
[336998331,1725299471283,-1295.36,0.00044931,120]
[336998332,1725299471293,-500.0,0.00044931,120]
[336998333,1725299471303,-852.54,0.00044931,120]
[336998334,1725299471312,-2684.25,0.00044931,120]
[336998335,1725299471322,-500.0,0.00044931,120]
[336998336,1725299471332,-760.47,0.00044931,120]
[336998337,1725299471341,-500.0,0.00044931,120]
[336998338,1725299471351,-500.0,0.00044931,120]
[336998339,1725299471360,-500.0,0.00044931,120]
[336998340,1725299471370,-500.0,0.00044931,120]
[336998341,1725299471380,-503.27311565,0.00044931,120]
[336998342,1725299471389,-500.0,0.00044931,120]
[336998343,1725299471398,-2593.6,0.00044931,120]
[336998344,1725299471408,-500.0,0.00044931,120]
[336998345,1725299471418,-500.0,0.00044931,120]
[336998346,1725299471427,-500.0,0.00044931,120]
[336998347,1725299471437,-504.79993804,0.00044931,120]
[336998348,1725299471447,-497.89874327,0.00044931,120]
[336998349,1725299471458,-500.0,0.00044931,120]
[336998350,1725299471468,-1684.55,0.00044931,120]
[336998351,1725299471478,-500.0,0.00044931,120]
[336998352,1725299471487,-500.0,0.00044931,120]
[336998353,1725299471497,-501.65447602,0.00044931,120]
[336998354,1725299471508,-500.0,0.00044931,120]
[336998355,1725299471519,-502.2282025,0.00044931,120]
[336998356,1725299471528,-500.0,0.00044931,120]
[336998357,1725299471540,-1404.31,0.00044931,120]
[336998358,1725299471552,-500.0,0.00044931,120]
[336998359,1725299471563,-672.6,0.00044931,120]
[336998360,1725299471573,-300.0,0.00044973,10]
[336998361,1725299471584,-1000.0,0.00045,30]
[336998362,1725299471594,-1130.0,0.00045,14]
[336998363,1725299471604,-238.06,0.00045,30]
[336998364,1725299471614,-402.71,0.00045,30]
[336998365,1725299471627,-19837.12,0.00045,30]
[336998366,1725299471639,-1625.36,0.00045,30]
[336998367,1725299471650,-503.84128596,0.00045,8]
[336998368,1725299471661,-1000.0,0.00045104,7]
[336998369,1725299471671,-1000.0,0.00045281,7]
[336998370,1725299471681,-1000.0,0.00045319,4]
[336998371,1725299471691,-1500.0,0.00045319,10]
[336998372,1725299471701,-503.84128596,0.0004545,8]
[336998373,1725299471712,-508.0095841,0.00045479,120]
[336998374,1725299471721,-207.58021375,0.00045479,120]
[336998375,1725299471731,-158.28742888,0.00045479,120]
[336998376,1725299471741,-500.0,0.00045479,120]
[336998377,1725299471750,-500.0,0.00045479,120]
[336998378,1725299471760,-500.0,0.00045479,120]
[336998379,1725299471770,-500.0,0.00045479,120]
[336998380,1725299471781,-500.0,0.00045479,120]
[336998381,1725299471791,-500.0,0.00045479,120]
[336998382,1725299471800,-500.0,0.00045479,120]
[336998383,1725299471809,-500.0,0.00045479,120]
[336998384,1725299471818,-500.0,0.00045479,120]
[336998385,1725299471828,-588.33,0.00045479,120]
[336998386,1725299471838,-551.0480503,0.00045479,120]
[336998387,1725299471847,-500.0,0.00045479,120]
[336998388,1725299471857,-504.37014975,0.00045479,120]
[336998389,1725299471867,-500.0,0.00045479,120]
[336998390,1725299471877,-500.0,0.00045479,120]
[336998391,1725299471887,-500.0,0.00045479,120]
[336998392,1725299471896,-500.0,0.00045479,30]
[336998393,1725299471905,-505.86819641,0.00045479,120]
[336998394,1725299471916,-587.44,0.00045479,120]
[336998395,1725299471926,-500.0,0.00045479,120]
[336998396,1725299471935,-500.0,0.00045479,120]
[336998397,1725299471946,-500.0,0.00045479,120]
[336998398,1725299471955,-500.0,0.00045479,120]
[336998399,1725299471964,-500.0,0.00045479,120]
[336998400,1725299471974,-1913.8,0.00045479,120]
[336998401,1725299471983,-500.0,0.00045479,120]
[336998402,1725299471992,-500.0,0.00045479,120]
[336998403,1725299472002,-500.0,0.00045479,120]
[336998404,1725299472011,-500.0,0.00045479,120]
[336998405,1725299472022,-500.0,0.00045479,120]
[336998406,1725299472032,-500.0,0.00045479,120]
[336998407,1725299472043,-500.0,0.00045479,120]
[336998408,1725299472054,-500.0,0.00045479,120]
[336998409,1725299472064,-500.0,0.00045479,120]
[336998410,1725299472073,-272.37926293,0.00045479,120]
[336998411,1725299472087,-500.0,0.00045479,120]
[336998412,1725299472096,-500.0,0.00045479,120]
[336998413,1725299472106,-500.0,0.00045479,120]
[336998414,1725299472117,-500.0,0.00045479,120]
[336998415,1725299472126,-500.0,0.00045479,120]
[336998416,1725299472135,-500.0,0.00045479,120]
[336998417,1725299472146,-500.0,0.00045479,120]
[336998418,1725299472155,-531.21650635,0.00045479,10]
[336998419,1725299472165,-500.0,0.00045479,120]
[336998420,1725299472175,-500.0,0.00045479,120]
[336998421,1725299472184,-500.0,0.00045479,120]
[336998422,1725299472194,-502.1144276,0.00045479,120]
[336998423,1725299472203,-500.0,0.00045479,120]
[336998424,1725299472213,-500.0,0.00045479,120]
[336998425,1725299472222,-504.46916024,0.00045479,120]
[336998426,1725299472231,-503.0890546,0.00045479,120]
[336998427,1725299472242,-520.83,0.00045479,120]
[336998428,1725299472254,-500.0,0.00045479,120]
[336998429,1725299472265,-500.0,0.00045479,120]
[336998430,1725299472274,-500.0,0.00045479,120]
[336998431,1725299472284,-500.0,0.00045479,120]
[336998432,1725299472293,-500.0,0.00045479,2]
[336998433,1725299472302,-500.0,0.00045479,120]
[336998434,1725299472311,-500.0,0.00045479,120]
[336998435,1725299472321,-405.98558671,0.00045479,2]
[336998436,1725299472330,-503.03954812,0.00045479,120]
[336998437,1725299472339,-500.0,0.00045479,120]
[336998438,1725299472348,-500.0,0.00045479,120]
[336998439,1725299472357,-500.0,0.00045479,120]
[336998440,1725299472366,-796.73,0.00045479,120]
[336998441,1725299472375,-500.0,0.00045479,120]
[336998442,1725299472385,-500.0,0.00045479,120]
[336998443,1725299472396,-500.0,0.00045479,120]
[336998444,1725299472406,-529.6,0.00045479,120]
[336998445,1725299472417,-503.33094535,0.00045479,120]
[336998446,1725299472426,-500.0,0.00045479,120]
[336998447,1725299472435,-500.0,0.00045479,120]
[336998448,1725299472445,-500.0,0.00045479,120]
[336998449,1725299472455,-500.0,0.00045479,120]
[336998450,1725299472466,-500.0,0.00045479,120]
[336998451,1725299472475,-500.0,0.00045479,120]
[336998452,1725299472485,-500.0,0.00045479,120]
[336998453,1725299472494,-500.0,0.00045479,120]
[336998454,1725299472503,-500.0,0.00045479,120]
[336998455,1725299472512,-507.15303279,0.00045479,120]
[336998456,1725299472522,-500.0,0.00045479,120]
[336998457,1725299472533,-500.0,0.00045479,120]
[336998458,1725299472545,-500.0,0.00045479,120]
[336998459,1725299472556,-500.0,0.00045479,120]
[336998460,1725299472566,-500.0,0.00045479,120]
[336998461,1725299472576,-500.0,0.00045479,120]
[336998462,1725299472585,-500.0,0.00045479,120]
[336998463,1725299472594,-507.45350102,0.00045479,120]
[336998464,1725299472604,-500.0,0.00045479,120]
[336998465,1725299472616,-500.0,0.00045479,120]
[336998466,1725299472627,-500.0,0.00045479,120]
[336998467,1725299472637,-500.0,0.00045479,120]
[336998468,1725299472648,-500.0,0.00045479,120]
[336998469,1725299472658,-503.04915604,0.00045479,120]
[336998470,1725299472669,-500.0,0.00045479,120]
[336998471,1725299472679,-500.0,0.00045479,120]
[336998472,1725299472687,-500.0,0.00045479,2]
[336998473,1725299472699,-511.46334528,0.00045479,120]
[336998474,1725299472709,-500.0,0.00045479,120]
[336998475,1725299472718,-500.0,0.00045479,120]
[336998476,1725299472727,-500.0,0.00045479,120]
[336998477,1725299472736,-500.0,0.00045479,120]
[336998478,1725299472746,-500.0,0.00045479,120]
[336998479,1725299472755,-500.0,0.00045479,120]
[336998480,1725299472764,-504.23389726,0.00045479,120]
[336998481,1725299472774,-500.0,0.00045479,120]
[336998482,1725299472784,-500.0,0.00045479,120]
[336998483,1725299472795,-500.0,0.00045479,120]
[336998484,1725299472804,-500.0,0.00045479,120]
[336998485,1725299472813,-504.73335956,0.00045479,120]
[336998486,1725299472823,-500.0,0.00045479,120]
[336998487,1725299472832,-500.0,0.00045479,120]
[336998488,1725299472842,-500.0,0.00045479,120]
[336998489,1725299472851,-502.64073534,0.00045479,120]
[336998490,1725299472861,-501.85022053,0.00045479,120]
[336998491,1725299472871,-500.0,0.00045479,120]
[336998492,1725299472880,-500.0,0.00045479,120]
[336998493,1725299472890,-1000.0,0.00045479,120]
[336998494,1725299472900,-500.0,0.00045479,120]
[336998495,1725299472909,-500.0,0.00045479,120]
[336998496,1725299472919,-500.0,0.00045479,120]
[336998497,1725299472928,-606.46,0.00045479,120]
[336998498,1725299472938,-500.0,0.00045479,120]
[336998499,1725299472947,-500.0,0.00045479,120]
[336998500,1725299472957,-500.0,0.00045479,120]
[336998501,1725299472966,-500.0,0.00045479,120]
[336998502,1725299472975,-500.0,0.00045479,120]
[336998503,1725299472985,-500.0,0.00045479,120]
[336998504,1725299472995,-500.0,0.00045479,120]
[336998505,1725299473004,-500.0,0.00045479,120]
[336998506,1725299473013,-500.0,0.00045479,120]
[336998507,1725299473022,-500.0,0.00045479,120]
[336998508,1725299473032,-500.0,0.00045479,120]
[336998509,1725299473041,-500.0,0.00045479,120]
[336998510,1725299473050,-509.34,0.00045479,120]
[336998511,1725299473060,-500.0,0.00045479,120]
[336998512,1725299473069,-500.0,0.00045479,120]